Cogmind - Beta 11 X10 @@@ ROGUE MODE // 2022.02.07 @ 21:53:02 Player: LU-1G1 Result: Destroyed by D-53 Grenadier with Mini Grenade Launcher Performance ------------- Evolutions (0) 0 Regions Visited (4) 800 Robots Destroyed (14) 70 Value Destroyed (355) 355 Prototype IDs (0) 0 Alien Tech Used (0) 0 Bonus (0) 0 TOTAL SCORE: 1225 Bonus ------- None Cogmind --------- Core Integrity 0/250 Matter 257/300 Energy 99/100 System Corruption 0% Temperature Cool (0) Movement Core (50) Location -9/Mines Parts ------- > --- POWER (1) -------- (None) > --- PROPULSION (2) --- (None) > --- UTILITY (2) ------ (None) > --- WEAPON (2) ------- (None) > --- INVENTORY (5) ---- Light Nuclear Core Aluminum Leg Airjet Improved Targeting Computer Assault Rifle Peak State ------------ > --- POWER ------------ Ion Engine > --- PROPULSION ------- Light Treads Light Treads > --- UTILITY ---------- High-capacity Storage Unit Improved Terrain Scanner > --- WEAPON ----------- Assault Rifle Heavy Assault Rifle > --- INVENTORY -------- Light Nuclear Core Light Treads Aluminum Leg Aluminum Leg Airjet Heat Sink Small Storage Unit Large Storage Unit High-capacity Matter Pod Improved Signal Interpreter EM Pulse Gun EM Pulse Gun Small Laser Assault Rifle Assault Rifle Assault Rifle Assault Rifle [Rating: 12] Favorites ----------- Power Ion Engine Engine Ion Engine Propulsion Light Treads Treads Light Treads Leg Aluminum Leg Utility Improved Terrain Scanner Device Improved Terrain Scanner Storage Large Storage Unit Protection Light Armor Plating Weapon Assault Rifle Energy Gun EM Pulse Gun Ballistic Gun Assault Rifle Build | -11 -10 -10 -10 -9 ------- Run | Scr Mat Min Exi Min Slots Evolved . | . . . . . Power . | . . . . . Propulsion . | . . . . . Utility . | . . . . . Weapon . | . . . . . Parts Attached 21 | 8 3 1 1 8 Power 2 | 1 . 1 . . Engine 2 | 1 . 1 . . Core . | . . . . . Reactor . | . . . . . Propulsion 6 | 2 . . . 4 Treads 5 | 2 . . . 3 Leg 1 | . . . . 1 Wheel . | . . . . . Hover . | . . . . . Flight . | . . . . . Utility 7 | 3 1 . 1 2 Device 2 | 2 . . . . Storage 3 | 1 1 . 1 . Processor . | . . . . . Hackware . | . . . . . Protection 2 | . . . . 2 Artifact . | . . . . . Weapon 6 | 2 2 . . 2 Energy Gun 2 | 2 . . . . Energy Cannon . | . . . . . Ballistic Gun 4 | . 2 . . 2 Ballistic Cannon . | . . . . . Launcher . | . . . . . Special Weapon . | . . . . . Impact Weapon . | . . . . . Slashing Weapon . | . . . . . Piercing Weapon . | . . . . . Special Melee Weapon . | . . . . . Unidentified Prototypes . | . . . . . Parts Lost 9 | . . . . 9 Power 1 | . . . . 1 Propulsion 3 | . . . . 3 Utility 2 | . . . . 2 Weapon 3 | . . . . 3 Highest Loss Streak 8 | . . . . 8 To Critical Strikes . | . . . . . Average Slot Usage (%) 100 | . 100 100 100 100 Engine 14 | . 14 14 14 14 Treads 28 | . 28 28 28 28 Device 12 | . 14 14 14 5 Storage 14 | . 14 14 14 14 Protection 1 | . . . . 8 Energy Gun 4 | . 24 . . . Ballistic Gun 23 | . 3 28 28 28 Naked Turns 2 | . . . . 2 Heaviest Build 53 | 14 30 30 50 53 Greatest Support 40 | 40 40 40 40 40 Greatest Overweight (x) 2 | . . . 1 2 Average Overweight (x) . | . . . . . Largest Inventory Capacity 20 | 8 15 15 20 20 Average Capacity 15 | 6 14 15 18 19 Most Carried 20 | 7 14 15 16 20 Average Carried 13 | 3 9 14 15 17 Final Capacity 20 | 8 15 15 20 5 Final Carried 15 | 7 14 15 15 5 Class Distribution -------------------- 90% | Mutant 9% | Scavenger-Mutant Dominant Class ---------------- Mutant | -10/Materials Mutant | -10/Mines Mutant | -10/Exiles Scavenger-Mutant | -9/Mines Resources | -11 -10 -10 -10 -9 ----------- Run | Scr Mat Min Exi Min Matter Collected 535 | 280 10 87 10 148 Remotely 124 | 124 . . . . Salvage Created 461 | 72 98 129 . 162 Parts 30 | 6 3 9 . 12 Haulers Intercepted . | . . . . . Recyclers Shooed . | . . . . . Parts Field Recycled . | . . . . . Retrieved Matter . | . . . . . Parts Self-Destructed . | . . . . . Prevented . | . . . . . Kills | -11 -10 -10 -10 -9 ------- Run | Scr Mat Min Exi Min Combat Hostiles Destroyed 11 | . 2 3 . 6 Guns 10 | . 1 3 . 6 AOE 1 | . 1 . . . Classes Destroyed 6 | 2 2 . . 2 Tunneler 1 | 1 . . . . Recycler 1 | 1 . . . . Watcher 1 | . 1 . . . Swarmer 4 | . . . . 4 Grunt 5 | . 2 3 . . Sentry 2 | . . . . 2 Best Kill Streak 4 | 2 3 2 . 4 Combat Bots Only 4 | . 2 2 . 4 Max Kills in Single Turn 2 | 2 1 1 . 1 Gunslinging . | . . . . . Exploded 1 | . 1 . . . Melee . | . . . . . Uniques/NPCs Destroyed . | . . . . . Combat | -11 -10 -10 -10 -9 -------- Run | Scr Mat Min Exi Min Damage Taken 1382 | . 127 64 . 1191 Core 267 | . 14 16 . 237 Absorbed by Shields . | . . . . . Core Remaining (%) 100 | 100 . . . . Volleys Fired 51 | 3 12 10 . 26 Largest 2 | 2 2 2 . 2 Hottest 80 | 80 80 40 . 43 Shots Fired 102 | 6 24 20 . 52 Gun 102 | 6 24 20 . 52 Cannon . | . . . . . Launcher . | . . . . . Special . | . . . . . Kinetic 72 | . . 20 . 52 Thermal 15 | 3 12 . . . Explosive . | . . . . . Electromagnetic 15 | 3 12 . . . Robot Hit Streak 24 | 2 4 6 . 24 Robot Miss Streak 4 | 1 3 1 . 4 Penetration Max . | . . . . . Secondary Targets 1 | . . . . 1 Max Gunslinging Chain 1 | . . . . 1 Shots Hit Robots 67 | 4 14 15 . 34 Core Hits 25 | 3 5 7 . 10 Critical Kills . | . . . . . Critical Parts Destroyed . | . . . . . Critical Strikes . | . . . . . Melee Attacks . | . . . . . Impact . | . . . . . Slashing . | . . . . . Piercing . | . . . . . Sneak Attacks . | . . . . . Combat Hostiles . | . . . . . Follow-up Attacks . | . . . . . Damage Inflicted 953 | 71 289 162 . 431 Guns 851 | 71 200 149 . 431 Cannons . | . . . . . Explosions 89 | . 89 . . . Melee . | . . . . . Ramming 13 | . . 13 . . Kinetic 580 | . . 149 . 431 Thermal 188 | 33 155 . . . Explosive . | . . . . . Electromagnetic 172 | 38 134 . . . Impact . | . . . . . Slashing . | . . . . . Piercing . | . . . . . Highest Corruption . | . . . . . Average Corruption . | . . . . . Corruption Purged . | . . . . . Corruption Blocked . | . . . . . Overload Shots . | . . . . . Overflow Damage . | . . . . . Projectiles . | . . . . . Explosions . | . . . . . Melee . | . . . . . Knockbacks . | . . . . . Impact . | . . . . . Kinetic . | . . . . . Secondary . | . . . . . Self-Inflicted Damage . | . . . . . Shots . | . . . . . Rammed 1 | . . 1 . . Targets Rammed 1 | . . 1 . . Kicked . | . . . . . Crushed . | . . . . . Highest Temperature 144 | 54 144 2 . 11 Average Temperature 46 | 29 60 2 . 3 Received Heat Transfer 207 | . 72 36 . 99 Siege Activations . | . . . . . Robots Corrupted . | . . . . . Combat Hostiles . | . . . . . Parts Fried 1 | . 1 . . . Impact Corruptions . | . . . . . Robots Melted . | . . . . . Combat Hostiles . | . . . . . Parts Melted . | . . . . . Heat Transferred 325 | 75 250 . . . Parts Sabotaged . | . . . . . Parts Stolen . | . . . . . Parts Stripped . | . . . . . Power Chain Reactions 1 | . 1 . . . Missiles Intercepted . | . . . . . Alert | -11 -10 -10 -10 -9 ------- Run | Scr Mat Min Exi Min Peak Influence 150 | 10 100 59 . 150 Initial 39 | . 6 39 . . Average 45 | 2 57 40 . 63 Maximum Alert Level . | . . . . . Low Security (%) 100 | 100 100 100 . 100 Level 1 . | . . . . . Level 2 . | . . . . . Level 3 . | . . . . . Level 4 . | . . . . . Level 5 . | . . . . . High Security . | . . . . . Max Security . | . . . . . Squads Dispatched 2 | . 1 1 . . Investigation 1 | . . 1 . . Extermination . | . . . . . Reinforcement 1 | . 1 . . . Assault . | . . . . . Garrison . | . . . . . Intercept . | . . . . . Construction Impeded . | . . . . . Haulers Reinforced . | . . . . . Active Scanning Responses . | . . . . . Cargo Convoy Interrupts . | . . . . . Stealth | -11 -10 -10 -10 -9 --------- Run | Scr Mat Min Exi Min Distress Signals 2 | . 1 . . 1 Communications Jammed . | . . . . . Distress Signals . | . . . . . Times Spotted 28 | . 6 4 . 18 Peak Tracking Total 11 | . 3 2 . 11 Tactical Retreats 2 | . 1 . . 1 Traps | -11 -10 -10 -10 -9 ------- Run | Scr Mat Min Exi Min Traps Triggered . | . . . . . Indirectly . | . . . . . Trap Hack Attempts . | . . . . . Triggered . | . . . . . Disarmed . | . . . . . Reprogrammed . | . . . . . Reused . | . . . . . Traps Extracted . | . . . . . Installed . | . . . . . Triggered . | . . . . . Machines | -11 -10 -10 -10 -9 ---------- Run | Scr Mat Min Exi Min Machines Disabled . | . . . . . Max in Single Turn . | . . . . . Machines Sabotaged . | . . . . . Garrisons Compromised . | . . . . . Overloaded Fab Kills . | . . . . . Hacking | -11 -10 -10 -10 -9 --------- Run | Scr Mat Min Exi Min Machines Accessed 3 | . 1 1 1 . Terminals 1 | . 1 . . . Fabricators . | . . . . . Repair Stations . | . . . . . Recycling Units . | . . . . . Scanalyzers . | . . . . . Garrison Access . | . . . . . Total Hacks 4 | . 2 1 1 . Successful 3 | . 1 1 1 . Failed 1 | . 1 . . . Catastrophic . | . . . . . Database Lockouts . | . . . . . Manual 2 | . 2 . . . Terminals 2 | . 2 . . . Fabricators . | . . . . . Repair Stations . | . . . . . Recycling Units . | . . . . . Scanalyzers . | . . . . . Garrison Access . | . . . . . Terminal Hacks 3 | . 1 1 1 . Record 1 | . . . 1 . Part Schematic 1 | . 1 . . . Open Door 1 | . . 1 . . Fabricator Hacks . | . . . . . Repair Station Hacks . | . . . . . Recycling Unit Hacks . | . . . . . Scanalyzer . | . . . . . Garrison Access Hacks . | . . . . . Unauthorized Hacks . | . . . . . Terminals . | . . . . . Fabricators . | . . . . . Repair Stations . | . . . . . Recycling Units . | . . . . . Scanalyzers . | . . . . . Garrison Access . | . . . . . Data Cores Recovered . | . . . . . Used . | . . . . . Hacking Detections 1 | . 1 . . . Full Trace Events . | . . . . . Feedback Events . | . . . . . Feedback Blocked . | . . . . . Robot Schematics Acquired . | . . . . . Robots Built . | . . . . . Authchips . | . . . . . Time . | . . . . . Total Robot Build Rating . | . . . . . Part Schematics Acquired 1 | . 1 . . . Parts Built . | . . . . . Authchips . | . . . . . Time . | . . . . . Total Part Build Rating . | . . . . . Parts Repaired . | . . . . . Time . | . . . . . Parts Recycled . | . . . . . Recycled Matter . | . . . . . Retrieved Matter . | . . . . . Retrieved Components . | . . . . . Parts Scanalyzed . | . . . . . Part Schematics Acquired . | . . . . . Parts Damaged . | . . . . . Bothacking | -11 -10 -10 -10 -9 ------------ Run | Scr Mat Min Exi Min Used RIF Installer . | . . . . . Robots Hacked . | . . . . . Non-combat . | . . . . . Combat . | . . . . . Robot Hacks Applied . | . . . . . Relay Couplers Released . | . . . . . Fabnet Peak Effective % . | . . . . . Robots Rewired . | . . . . . Allies Hacked . | . . . . . Hacks Repelled . | . . . . . Allies | -11 -10 -10 -10 -9 -------- Run | Scr Mat Min Exi Min Total Allies . | . . . . . Largest Group . | . . . . . Highest-Rated Group . | . . . . . Highest-Rated Ally . | . . . . . Total Orders . | . . . . . Ally Attacks . | . . . . . Total Damage . | . . . . . Kills . | . . . . . Allies Corrupted . | . . . . . Allies Melted . | . . . . . Intel | -11 -10 -10 -10 -9 ------- Run | Scr Mat Min Exi Min Robot Analysis Total . | . . . . . Derelict Logs Recovered 3 | . . 2 . 1 Drone Launches . | . . . . . Drone Recoveries . | . . . . . Exploration | -11 -10 -10 -10 -9 ------------- Run | Scr Mat Min Exi Min Turns Passed 1808 | 84 287 821 351 265 Spaces Moved 900 | 38 138 478 171 75 Core 7 | 3 . . . 4 Treads 893 | 35 138 478 171 71 Legs . | . . . . . Wheels . | . . . . . Hover . | . . . . . Flight . | . . . . . Fastest Speed 50 | 50 160 160 160 50 Average Speed 173 | 151 160 160 203 230 Slowest Speed 320 | 160 160 160 240 320 Overloaded Moves . | . . . . . Propulsion Burnouts . | . . . . . Robots Hopped . | . . . . . Cave-ins Triggered . | . . . . . Exploration Rate (%) 39 | 5 29 88 54 19 Regions Visited 4 Branch Regions 3 Pre-discovered Areas 2 | . . . 1 1 Known Exits Taken . | . . . . . Unknown Exits Taken 4 | 1 1 1 1 . Scrap Searched 1 | . . 1 . . Spaces Dug . | . . . . . Terrain Destroyed 3 | . 3 . . . Melee . | . . . . . Projectile . | . . . . . AOE 3 | . 3 . . . Terrain Rammed . | . . . . . Walls Destroyed . | . . . . . Machines Disabled . | . . . . . Actions | -11 -10 -10 -10 -9 --------- Run | Scr Mat Min Exi Min Total 1040 | 55 179 517 176 113 Wait 36 | . 21 14 . 1 Move 896 | 37 137 477 170 75 Hop . | . . . . . Pick Up 23 | 6 6 7 2 2 Fast Attach 10 | 8 . . . 2 Attach 4 | . . . . 4 Detach 2 | 1 . . . 1 Swap 7 | . 3 1 1 2 Drop 10 | . . 7 3 . Fire 51 | 3 12 10 . 26 Melee . | . . . . . Ram . | . . . . . Kick . | . . . . . Crush 1 | . . 1 . . Escape Stasis . | . . . . . Rewire . | . . . . . Trap . | . . . . . Miscellaneous . | . . . . . Route ------- -11/Scrapyard -10/Materials (discovered 2 exits: [*Mat] / *Min) -10/Mines (discovered 3 exits: [*Mat x2] / *Exi) -10/Exiles -9/Mines (discovered 1 exit: [*Mat]) History --------- Turn | Location | Event 27 | -11/Scrapyard | Discovered new exit (range 15) 85 | -11/Scrapyard | Entered Materials 260 | -10/Materials | Discovered new exit (range 14) 287 | -10/Materials | Discovered new exit (range 16) 300 | -10/Materials | Build established: Mutant 372 | -10/Materials | Entered Mines 387 | -10/Mines | Learned 2 Materials zone layouts 456 | -10/Mines | Learned 2 Materials zone layouts 488 | -10/Mines | Deemed a non-threat by the Exiles lab entrance 488 | -10/Mines | Discovered new exit (range 5) 529 | -10/Mines | Discovered new exit (range 10) 586 | -10/Mines | Met a Derelict shopkeep closing up shop 774 | -10/Mines | Discovered new exit (range 3) 959 | -10/Mines | A weapon hastily lodged in a ceiling crevice suddenly fell to the ground 1193 | -10/Mines | Entered Exiles 1233 | -10/Exiles | Met 8R-AWN 1259 | -10/Exiles | Met EX-HEX 1367 | -10/Exiles | Met EX-DEC 1410 | -10/Exiles | Learned location of Zion (-6) 1525 | -10/Exiles | Discovered new exit (range 10) 1544 | -10/Exiles | Entered Mines 1636 | -9/Mines | Learned location of Storage (-9) 1785 | -9/Mines | Assembled infested the area 1798 | -9/Mines | Core integrity fell below 50% 1803 | -9/Mines | Core integrity fell below 20% 1807 | -9/Mines | Released all parts (3) 1808 | -9/Mines | Discovered new exit (range 15) 1809 | -9/Mines | Destroyed by D-53 Grenadier with Mini Grenade Launcher Last Messages --------------- 01793_ Lgt. Armor Plating destroyed. 01794_ Lgt. Treads destroyed. 01797_ K-01 Serf cleans the Plasma Injector. 01799_ Assault Rifle destroyed. 01801_ Lgt. Treads destroyed. 01801_ K-01 Serf cleans the Plasma Injector. 01804_ Med. Armor Plating destroyed. 01805_ Ion Engine destroyed. 01805_ Hvy. Assault Rifle destroyed. 01806_ U-05 Engineer builds a Wall. 01806_ Assault Rifle destroyed. 01807_ The unstable cave ceiling collapses. 01807_ as-59949 sneak attacks. 01807_ Released Hcp. Storage Unit. 01807_ Released Lgt. Treads. 01807_ Released Aluminum Leg. 01807_ R-06 Scavenger sends out distress signal. 01808_ EXIT=FOUND 01809_ The unstable cave ceiling collapses. 01809_ Lrg. Storage Unit crushed. Map ----- +----------------------------------------------------+ | ???????????# %+ #### ##????????????????? | | ???????????# + ### ##???????????????? | | ???????????#"! # ### #???????????????? | | ???????????##!!## ### #???????????????? | | ????????????###### #?### ##???????????????? | | ?????????????????# ###?# #????????????????? | | ????????????#????# ####? #????????????????? | | ???#?#???????????## =[[ #? ????????????????? | | ??????????????????## ### #?##???????????#????? | | ?????????????????#?####?#[#???????????????????? | | ????????????#???????????# #?#?????????????????? | | ?????????#?#????????##### #???????????????????? | | ????????????????????# ##??????????????????? | | ????????????????????# ### #???????????????????? | | ?????????????######## ### #???????????????????? | | ????????????? # ####????????????????? | | ????????????????"" """ #####????????????? | | ???????????????""" """ #????????????? | | ??????????? """ """ ### #????????????? | | ??????????# # = #???????????????? | | ?????????????? #!! #???????????????? | | ????????????????##### [[![! #???????????????? | | ????????????????????# =[![ #???????????????? | | ????????????????????# ! #???????????????? | | ????????????????????## r ##???????????????? | | ?????????????????????#u @ #????????????????? | | ?????????????????# a a #?????????? | | ????????????# % g da ##?????????? | | ????????????# g g d ##a a ##??????????? | | ????????????#### ##?# a ##???????????? | | ???????????????## ####????### #????????????? | | ????????????????## %#??????????? #????????????? | | ?????????????????# ?????????????#????????????? | | ????????????????# ???????????????????????????? | | ???????????????? ???????????????????????????? | | ???????????????# ????????????????????????????? | | ???????????????